fUSD/lending_fUSD_20251225
["ID","MTS","AMOUNT","RATE_DAILY","PERIOD"]
[399780611,1766670632644,-500.0,0.00012094,2]
[399780614,1766670632655,-500.0,0.00012094,2]
[399780616,1766670632666,-500.0,0.00012094,2]
[399780618,1766670632676,-500.0,0.00012094,2]
[399780620,1766670632687,-500.0,0.00012094,2]
[399780622,1766670632699,-500.0,0.00012094,2]
[399780624,1766670632710,-500.0,0.00012094,2]
[399780626,1766670632722,-500.0,0.00012094,2]
[399780627,1766670632732,-500.0,0.00012094,2]
[399780631,1766670632760,-500.0,0.00012094,2]
[399780632,1766670632774,-640.01760773,0.00012094,2]
[399780633,1766670632786,-500.0,0.00012094,2]
[399780634,1766670632797,-500.0,0.00012094,2]
[399780635,1766670632810,-500.0,0.00012094,2]
[399780636,1766670632821,-500.0,0.00012094,2]
[399780637,1766670632834,-500.0,0.00012094,2]
[399780638,1766670632845,-500.0,0.00012094,2]
[399780639,1766670632857,-500.0,0.00012094,2]
[399780640,1766670632870,-150.0,0.00012094,2]
[399780641,1766670632882,-991.93,0.00012094,2]
[399780642,1766670632894,-250.0,0.00012094,2]
[399780643,1766670632906,-250.0,0.00012095,2]
[399780644,1766670632918,-500.0,0.00012095,2]
[399780645,1766670632930,-300.0,0.00012095,2]
[399780646,1766670632942,-1074.12,0.00012192,2]
[399780647,1766670632955,-500.0,0.00012249,2]
[399780648,1766670632967,-5392.421362,0.00012249,2]
[399780649,1766670632983,-473.32,0.00012249,2]
[399780650,1766670633005,-339.75260614,0.00012249,2]
[399780651,1766670633019,-974.17884844,0.00012249,2]
[399780652,1766670633033,-867.29465335,0.00012249,2]
[399780653,1766670633049,-1482.30532491,0.00012249,2]
[399780654,1766670633065,-470.71720516,0.00012249,2]
[399780655,1766670633077,-109.64340917,0.00012249,2]
[399780656,1766670633090,-190.34659083,0.00012249,2]
[399780657,1766670633103,-150.0,0.00012273,2]
[399780658,1766670633115,-150.99,0.00012273,2]
[399780659,1766670633127,-653.62699682,0.00012368,2]
[399780660,1766670633141,-338.30300318,0.00012368,2]
[399780661,1766670633152,-418.40792351,0.00012407,2]
[399780662,1766670633166,-355.16207649,0.00012407,2]
[399780663,1766670633177,-1000.0,0.000125,2]
[399780664,1766670633190,-718.13382027,0.00012546,2]
[399780665,1766670633204,-3019.80617973,0.00012546,2]
[399780666,1766670633216,-166.68,0.00012563,2]
[399780667,1766670633228,-991.93,0.00012642,2]
[399780668,1766670633239,-500.0,0.00012712,2]
[399780669,1766670633251,-127.88380027,0.0001286,2]
[399780670,1766670633268,-108.15959973,0.0001286,2]
[399780671,1766670633280,-587.85981974,0.00012901,2]
[399780672,1766670633291,-8862.26060315,0.00012901,2]
[399780673,1766670633302,-5000.294206,0.00012901,2]
[399780674,1766670633316,-1468.67056078,0.00012901,2]
[399780675,1766670638114,-2209.98352126,0.00012901,2]
[399780676,1766670638171,-675.01067611,0.00012901,2]
[399780677,1766670638186,-4407.8406511,0.00012901,2]
[399780678,1766670638200,-991.93,0.00012916,2]
[399780679,1766670638211,-151.0,0.00012957,2]
[399780680,1766670638222,-377.45790761,0.00012959,2]
[399780681,1766670638235,-190922.09547639,0.0001296,2]
[399780682,1766670638248,-62380.68402102,0.0001296,2]
[399780683,1766670638267,-7167.08885631,0.0001296,2]
[399780684,1766670638281,-1046.26,0.0001296,2]
[399780685,1766670638295,-474.71000045,0.0001296,2]
[399780686,1766670638308,-498.98998669,0.0001296,2]
[399780687,1766670638321,-1986.98446939,0.0001296,2]
[399780688,1766670638333,-631.32,0.0001296,2]
[399780689,1766670638346,-1294.22726958,0.0001296,2]
[399780691,1766670638360,-2437.99103874,0.0001296,2]
[399780693,1766670638372,-1887.99999,0.0001296,2]
[399780695,1766670638386,-1616.09048088,0.0001296,2]
[399780698,1766670638421,-1377.07327054,0.0001296,2]
[399780735,1766670640378,-726278.48514001,0.0001296,2]
[399780736,1766670640389,-587.85981974,0.00013002,2]
[399780737,1766670640400,-21890.3594,0.0001306,2]
[399780738,1766670640411,-1000.0,0.0001306,2]
[399780739,1766670640422,-587.85981974,0.00013102,2]
[399780740,1766670640433,-224.2608279,0.00013118,2]
[399780741,1766670640444,-1138.91869416,0.00013125,2]
[399780742,1766670640454,-815.60674075,0.0001315,2]
[399780743,1766670640465,-151.0,0.00013152,2]
[399780744,1766670640476,-151.0,0.00013152,2]
[399780745,1766670640487,-151.0,0.00013152,2]
[399780746,1766670640499,-207.4,0.00013152,2]
[399780747,1766670640509,-151.0,0.00013152,2]
[399780748,1766670640519,-151.0,0.00013152,2]
[399780749,1766670640530,-151.0,0.00013152,2]
[399780750,1766670640541,-151.0,0.00013152,2]
[399780751,1766670640552,-151.0,0.00013152,2]
[399780752,1766670640562,-151.0,0.00013152,2]
[399780753,1766670640572,-151.0,0.00013152,2]
[399780754,1766670640583,-151.0,0.00013152,2]
[399780755,1766670640594,-151.0,0.00013157,2]
[399780756,1766670640604,-151.0,0.00013157,2]
[399780757,1766670640615,-201810.50428143,0.0001316,2]
[399780758,1766670640625,-255.0,0.00013182,2]
[399780759,1766670640635,-991.93,0.0001319,2]
[399780760,1766670640646,-3902.37209874,0.00013192,2]
[399780761,1766670640657,-151.0,0.00013199,2]
[399780762,1766670640668,-151.0,0.00013199,2]
[399780763,1766670640679,-151.0,0.00013199,2]
[399780764,1766670640691,-72484.892271,0.00013202,2]
[399780765,1766670640702,-19782.3759079,0.00013202,2]
[399780766,1766670640713,-2090.5549903,0.00013202,2]
[399780767,1766670640724,-143784.6842128,0.00013202,2]
[399780768,1766670640734,-245.69288,0.00013202,2]
[399780769,1766670640746,-245.69288,0.00013202,2]
[399780770,1766670640757,-245.69288,0.00013202,2]
[399780771,1766670640768,-245.69288,0.00013202,2]
[399780772,1766670640779,-199.525094,0.00013202,2]
[399780773,1766670640790,-199.525094,0.00013202,2]
[399780774,1766670640800,-199.525094,0.00013202,2]
[399780775,1766670640811,-199.525094,0.00013202,2]
[399780776,1766670640822,-174.256907,0.00013202,2]
[399780777,1766670640833,-174.256907,0.00013202,2]
[399780778,1766670640845,-174.256907,0.00013202,2]
[399780779,1766670640856,-174.256907,0.00013202,2]
[399780780,1766670640867,-1040.930741,0.00013202,2]
[399780781,1766670640878,-1040.930741,0.00013202,2]
[399780782,1766670640889,-1040.930741,0.00013202,2]
[399780783,1766670640901,-1040.930741,0.00013202,2]
[399780784,1766670640911,-269.251734,0.00013202,2]
[399780785,1766670640922,-5206.5731748,0.00013245,2]
[399780800,1766670640933,-300.0,0.00013274,2]
[399780801,1766670641410,-218.14975262,0.00013279,2]
[399780802,1766670641420,-500.0,0.00013279,2]
[399780803,1766670641430,-2936.33045142,0.00013291,2]
[399780804,1766670641440,-151.0,0.00013292,2]
[399780805,1766670641451,-151.0,0.00013292,2]
[399780806,1766670641461,-151.0,0.00013292,2]
[399780807,1766670641472,-248.941271,0.00013292,2]
[399780808,1766670641481,-151.0,0.00013292,2]
[399780809,1766670641492,-151.0,0.00013292,2]
[399780810,1766670641502,-151.0,0.00013292,2]
[399780811,1766670641513,-151.0,0.00013292,2]
[399780812,1766670641524,-151.0,0.00013292,2]
[399780813,1766670641534,-151.0,0.00013292,2]
[399780814,1766670641543,-151.0,0.00013292,2]
[399780815,1766670641553,-151.0,0.00013292,2]
[399780816,1766670641564,-151.0,0.00013292,2]
[399780817,1766670641573,-151.0,0.00013292,2]
[399780818,1766670641583,-1256.0,0.00013292,2]
[399780819,1766670641593,-151.0,0.00013292,2]
[399780820,1766670641603,-151.0,0.00013292,2]
[399780821,1766670641613,-151.0,0.00013292,2]
[399780822,1766670641624,-152.0,0.00013292,2]
[399780823,1766670641634,-152.0,0.00013292,2]
[399780824,1766670641643,-1680.0,0.00013302,2]
[399780825,1766670641653,-250.0,0.00013303,2]
[399780826,1766670641664,-300.0,0.00013305,2]
[399780827,1766670641673,-322.6107,0.00013312,2]
[399780828,1766670641683,-151.0,0.00013312,2]
[399780829,1766670641692,-500.0,0.00013312,2]
[399780830,1766670641702,-283.21041028,0.00013312,2]
[399780831,1766670641712,-500.0,0.00013312,2]
[399780832,1766670641721,-500.0,0.00013312,2]
[399780833,1766670641732,-500.0,0.00013312,2]
[399780834,1766670641743,-500.0,0.00013312,2]
[399780835,1766670641752,-500.0,0.00013312,2]
[399780836,1766670641763,-500.0,0.00013312,2]
[399780837,1766670641773,-500.0,0.00013312,2]
[399780838,1766670641782,-500.0,0.00013312,2]
[399780839,1766670641791,-574.12855637,0.00013312,2]
[399780840,1766670641800,-250.0,0.00013312,2]
[399780841,1766670641809,-500.0,0.00013312,2]
[399780842,1766670641820,-578.20924308,0.00013312,2]
[399780843,1766670641829,-250.0,0.00013312,2]
[399780844,1766670641839,-500.0,0.00013312,2]
[399780845,1766670641850,-250.0,0.00013312,2]
[399780846,1766670641859,-250.0,0.00013312,2]
[399780847,1766670641869,-250.0,0.00013312,2]
[399780848,1766670641879,-250.0,0.00013312,2]
[399780849,1766670641892,-1500.0,0.00013312,2]
[399780850,1766670641902,-250.0,0.00013312,2]
[399780851,1766670641913,-200.0,0.00013312,2]
[399780852,1766670641923,-250.0,0.00013312,2]
[399780853,1766670641932,-207.4,0.00013312,2]
[399780854,1766670641942,-500.0,0.00013312,2]
[399780855,1766670641952,-250.0,0.00013312,2]
[399780856,1766670641963,-500.0,0.00013312,2]
[399780857,1766670641973,-215.0738,0.00013312,2]
[399780858,1766670641983,-250.0,0.00013312,2]
[399780859,1766670641994,-223.0315306,0.00013312,2]
[399780860,1766670642004,-500.0,0.00013312,2]
[399780861,1766670642013,-250.0,0.00013312,2]
[399780862,1766670642023,-231.28369723,0.00013312,2]
[399780863,1766670642033,-500.0,0.00013312,2]
[399780864,1766670642042,-239.84119403,0.00013312,2]
[399780865,1766670642052,-248.71531821,0.00013312,2]
[399780866,1766670642062,-500.0,0.00013312,2]
[399780867,1766670642072,-341.32045697,0.00013312,2]
[399780868,1766670642082,-500.0,0.00013312,2]
[399780869,1766670642092,-500.0,0.00013312,2]
[399780870,1766670642102,-500.0,0.00013312,2]
[399780871,1766670642112,-500.0,0.00013312,2]
[399780872,1766670642121,-250.0,0.00013312,2]
[399780873,1766670642131,-500.0,0.00013312,2]
[399780874,1766670642141,-250.0,0.00013312,2]
[399780875,1766670642150,-500.0,0.00013312,2]
[399780876,1766670642160,-250.0,0.00013312,2]
[399780877,1766670642169,-250.0,0.00013312,2]
[399780878,1766670642180,-250.0,0.00013312,2]
[399780879,1766670642195,-250.0,0.00013312,2]
[399780880,1766670642205,-250.0,0.00013312,2]
[399780881,1766670642217,-250.0,0.00013312,2]
[399780882,1766670642226,-250.0,0.00013312,2]
[399780883,1766670642236,-500.0,0.00013312,2]
[399780884,1766670642246,-250.0,0.00013312,2]
[399780885,1766670642255,-1500.0,0.00013312,2]
[399780886,1766670642266,-500.0,0.00013312,2]
[399780887,1766670642276,-250.0,0.00013312,2]
[399780888,1766670642285,-500.0,0.00013312,2]
[399780889,1766670642295,-1500.0,0.00013312,2]
[399780890,1766670642305,-250.0,0.00013312,2]
[399780891,1766670642315,-500.0,0.00013312,2]
[399780892,1766670642325,-1500.0,0.00013312,2]
[399780893,1766670642335,-250.0,0.00013312,2]
[399780894,1766670642345,-500.0,0.00013312,2]
[399780895,1766670642355,-1500.0,0.00013312,2]
[399780896,1766670642364,-250.0,0.00013312,2]
[399780897,1766670642374,-536.59747576,0.00013312,2]
[399780898,1766670642384,-1500.0,0.00013312,2]
[399780899,1766670642394,-250.0,0.00013312,2]
[399780900,1766670642404,-1500.0,0.00013312,2]
[399780901,1766670642414,-250.0,0.00013312,2]
[399780902,1766670642424,-1500.0,0.00013312,2]
[399780903,1766670642435,-250.0,0.00013312,2]
[399780904,1766670642445,-1500.0,0.00013312,2]
[399780905,1766670642455,-250.0,0.00013312,2]
[399780906,1766670642465,-1500.0,0.00013312,2]
[399780907,1766670642475,-250.0,0.00013312,2]
[399780908,1766670642485,-1500.0,0.00013312,2]
[399780909,1766670642495,-250.0,0.00013312,2]
[399780910,1766670642505,-1500.0,0.00013312,2]
[399780911,1766670642516,-620.0,0.00013312,2]
[399780912,1766670642526,-217.57602405,0.00013312,2]
[399780913,1766670642536,-8862.26060312,0.00013345,2]
[399780914,1766670642547,-13761.79961522,0.00013345,2]
[399780915,1766670642557,-159.26,0.00013348,2]
[399780916,1766670642567,-518.87214835,0.00013397,2]
[399780917,1766670642577,-291.73625945,0.000134,2]
[399780918,1766670642587,-151.0,0.00013406,2]
[399780919,1766670642597,-151.0,0.00013406,2]
[399780920,1766670642607,-151.0,0.00013406,2]
[399780921,1766670642617,-151.0,0.00013406,2]
[399780922,1766670642626,-151.0,0.00013406,2]
[399780923,1766670642636,-151.0,0.00013406,2]
[399780924,1766670642647,-151.0,0.00013406,2]
[399780925,1766670642657,-151.0,0.00013406,2]
[399780926,1766670642667,-151.0,0.00013406,2]
[399780927,1766670642678,-151.0,0.00013406,2]
[399780928,1766670642688,-151.0,0.00013406,2]
[399780929,1766670642698,-298.038457,0.00013406,2]
[399780930,1766670642708,-151.0,0.00013406,2]
[399780931,1766670642719,-151.0,0.00013406,2]
[399780932,1766670642728,-151.0,0.00013406,2]
[399780933,1766670642738,-151.0,0.00013406,2]
[399780934,1766670642748,-151.0,0.00013406,2]
[399780935,1766670642759,-250.0,0.00013435,2]
[399780936,1766670642769,-402.17,0.00013444,2]
[399780937,1766670642779,-991.93,0.00013464,2]
[399780938,1766670642789,-151.0,0.00013598,2]
[399780939,1766670642799,-166.66,0.00013658,2]
[399780940,1766670642809,-500.0,0.00013698,2]
[399780941,1766670642820,-500.0,0.00013698,2]
[399780942,1766670642831,-500.0,0.00013698,2]
[399780943,1766670642841,-500.0,0.00013698,2]
[399780944,1766670642851,-504.09132802,0.00013698,2]
[399780945,1766670642862,-500.0,0.00013698,2]
[399780946,1766670642871,-500.0,0.00013698,2]
[399780947,1766670642882,-500.0,0.00013698,2]
[399780949,1766670642892,-500.0,0.00013698,2]
[399780950,1766670642902,-597.81,0.00013698,2]
[399780951,1766670642912,-500.0,0.00013698,2]
[399780952,1766670642923,-500.0,0.00013698,2]
[399780953,1766670642932,-500.0,0.00013698,2]
[399780954,1766670642942,-500.0,0.00013698,2]
[399780955,1766670642952,-500.0,0.00013698,2]
[399780956,1766670642961,-500.0,0.00013698,2]
[399780957,1766670642971,-500.0,0.00013698,2]
[399780958,1766670642982,-500.0,0.00013698,2]
[399780959,1766670642992,-500.0,0.00013698,2]
[399780960,1766670643002,-500.0,0.00013698,2]
[399780961,1766670643011,-632.50947832,0.00013698,2]
[399780962,1766670643021,-500.0,0.00013698,2]
[399780963,1766670643030,-500.0,0.00013698,2]
[399780964,1766670643040,-500.0,0.00013698,2]
[399780965,1766670643049,-500.0,0.00013698,2]
[399780967,1766670643059,-500.0,0.00013698,2]
[399780968,1766670643068,-414.818323,0.00013698,2]
[399780970,1766670643079,-500.0,0.00013698,2]
[399780971,1766670643089,-500.0,0.00013698,2]
[399780972,1766670643099,-500.0,0.00013698,2]
[399780973,1766670643109,-500.0,0.00013698,2]
[399780974,1766670643119,-500.0,0.00013698,2]
[399780976,1766670643129,-500.0,0.00013698,2]
[399780977,1766670643139,-500.0,0.00013698,2]
[399780978,1766670643148,-506.34489947,0.00013698,2]
[399780979,1766670643157,-500.0,0.00013698,2]
[399780980,1766670643168,-500.0,0.00013698,2]
[399780981,1766670643178,-500.0,0.00013698,2]
[399780982,1766670643188,-532.70221556,0.00013698,2]
[399780983,1766670643200,-500.0,0.00013698,2]
[399780984,1766670643211,-500.0,0.00013698,2]
[399780985,1766670643220,-507.68415604,0.00013698,2]
[399780986,1766670643230,-516.65166204,0.00013698,2]
[399780987,1766670643242,-500.0,0.00013698,2]
[399780988,1766670643252,-500.0,0.00013698,2]
[399780989,1766670643262,-500.0,0.00013698,2]
[399780990,1766670643272,-500.0,0.00013698,2]
[399780991,1766670643282,-500.0,0.00013698,2]
[399780992,1766670643292,-500.0,0.00013698,2]
[399780993,1766670643301,-500.0,0.00013698,2]
[399780994,1766670643311,-500.0,0.00013698,2]
[399780995,1766670643320,-500.0,0.00013698,2]
[399780996,1766670643330,-500.0,0.00013698,2]
[399780997,1766670643340,-500.0,0.00013698,2]
[399780998,1766670643349,-549.72199341,0.00013698,2]
[399780999,1766670643360,-500.0,0.00013698,2]
[399781000,1766670643369,-500.0,0.00013698,2]
[399781001,1766670643379,-500.0,0.00013698,2]
[399781002,1766670643388,-1040.930741,0.00013698,2]
[399781003,1766670643397,-1040.930741,0.00013698,2]
[399781004,1766670643406,-1040.930741,0.00013698,2]
[399781005,1766670643415,-1040.930741,0.00013698,2]
[399781006,1766670643424,-500.0,0.00013698,2]
[399781007,1766670643434,-500.0,0.00013698,2]
[399781008,1766670643444,-500.0,0.00013698,2]
[399781009,1766670643454,-500.0,0.00013698,2]
[399781010,1766670643464,-522.96995118,0.00013698,2]
[399781011,1766670643474,-500.0,0.00013698,2]
[399781012,1766670643484,-500.0,0.00013698,2]
[399781013,1766670643494,-500.0,0.00013698,2]
[399781014,1766670643503,-151.0,0.00013699,2]
[399781015,1766670643513,-151.0,0.00013699,2]
[399781016,1766670643524,-151.0,0.00013699,2]
[399781017,1766670643533,-151.0,0.00013699,2]
[399781018,1766670643542,-227.159974,0.00013699,2]
[399781019,1766670643550,-227.159974,0.00013699,2]
[399781020,1766670643560,-227.159974,0.00013699,2]
[399781021,1766670643570,-227.159974,0.00013699,2]
[399781022,1766670643580,-1000.0,0.00013699,2]
[399781023,1766670643591,-151.0,0.00013699,2]
[399781024,1766670643601,-151.0,0.00013699,2]
[399781025,1766670643611,-151.0,0.00013699,2]
[399781026,1766670643622,-661.4,0.00013699,2]
[399781027,1766670643632,-200.0,0.00013699,2]
[399781028,1766670643643,-168.041508,0.00013699,2]
[399781029,1766670643653,-168.041508,0.00013699,2]
[399781031,1766670643663,-168.041508,0.00013699,2]
[399781032,1766670643674,-168.041508,0.00013699,2]
[399781034,1766670643683,-168.041508,0.00013699,2]
[399781036,1766670643694,-991.93,0.00013738,2]
[399781038,1766670643704,-8434.48785414,0.0001379,2]
[399781044,1766670643908,-427.77274898,0.0001379,2]
[399781045,1766670643918,-4002.39695887,0.0001379,2]
[399781046,1766670643947,-168.041508,0.00013699,2]
[399781047,1766670643958,-423.42846437,0.0001379,2]
[399781048,1766670644235,-168.041508,0.00013699,2]
[399781049,1766670644246,-168.041508,0.00013699,2]
[399781050,1766670644256,-5683.65531267,0.0001379,2]
[399781051,1766670644274,-259.19169647,0.0001379,2]
[399781052,1766670644291,-2493.1,0.0001379,2]
[399781053,1766670644303,-649.83334176,0.0001379,2]
[399781054,1766670644339,-250.19384108,0.0001379,2]
[399781055,1766670644349,-500.0,0.00013805,2]
[399781056,1766670644360,-151.0,0.00013805,2]
[399781057,1766670644370,-151.0,0.00013805,2]
[399781058,1766670644381,-151.0,0.00013805,2]
[399781059,1766670644391,-595.37131296,0.0001386,2]
[399781060,1766670644400,-1000.0,0.000139,2]
[399781061,1766670644410,-151.0,0.00013943,2]
[399781062,1766670644420,-151.0,0.00013946,2]
[399781063,1766670644430,-151.0,0.00013946,2]
[399781064,1766670644440,-151.0,0.00013946,2]
[399781065,1766670644450,-151.0,0.00013946,2]
[399781066,1766670644461,-151.0,0.00013946,2]
[399781067,1766670644471,-245.69288,0.00013946,2]
[399781068,1766670644480,-245.69288,0.00013946,2]
[399781069,1766670644489,-245.69288,0.00013946,2]
[399781070,1766670644499,-245.69288,0.00013946,2]
[399781071,1766670644509,-199.525094,0.00013946,2]
[399781072,1766670644518,-199.525094,0.00013946,2]
[399781073,1766670644527,-199.525094,0.00013946,2]
[399781074,1766670644537,-199.525094,0.00013946,2]
[399781075,1766670644546,-174.256907,0.00013946,2]
[399781076,1766670644555,-174.256907,0.00013946,2]
[399781077,1766670644564,-174.256907,0.00013946,2]
[399781078,1766670644573,-174.256907,0.00013946,2]
[399781079,1766670644583,-227.159974,0.00013946,2]
[399781080,1766670644593,-227.159974,0.00013946,2]
[399781081,1766670644603,-227.159974,0.00013946,2]
[399781082,1766670644613,-227.159974,0.00013946,2]
[399781083,1766670644857,-964.64995835,0.00014012,2]
[399781084,1766670644997,-26.87290567,0.00014012,2]
[399781085,1766670645064,-0.40713598,0.00014012,2]
[399781086,1766670645075,-151.0,0.00014191,2]
[399781087,1766670645085,-151.0,0.00014191,2]
[399781088,1766670645097,-151.0,0.00014191,2]
[399781089,1766670645107,-151.0,0.00014191,2]
[399781090,1766670645117,-26.59286402,0.00014191,2]
[399781091,1766670645130,-124.40713598,0.00014191,2]
[399781092,1766670645141,-151.0,0.00014191,2]
[399781093,1766670645151,-151.0,0.00014191,2]
[399781094,1766670645162,-151.0,0.00014191,2]
[399781095,1766670645172,-72.59286402,0.00014191,2]
[399781096,1766670645195,-78.40713598,0.00014191,2]
[399781097,1766670645206,-151.0,0.00014191,2]
[399781098,1766670645216,-151.0,0.00014191,2]
[399781099,1766670645226,-151.0,0.00014191,2]
[399781100,1766670645238,-23.20218144,0.00014191,2]
[399781109,1766670646182,-151.0,0.0001379,2]
[399781110,1766670646196,-127.79781856,0.00014191,2]
[399781111,1766670646207,-151.0,0.00014191,2]
[399781112,1766670646218,-151.0,0.00014191,2]
[399781113,1766670646228,-234.950329,0.00014191,2]
[399781114,1766670646239,-8862.26060312,0.00014234,2]
[399781115,1766670646250,-13761.79961522,0.00014234,2]
[399781116,1766670646261,-159.26,0.00014238,2]
[399781117,1766670646271,-991.93,0.00014286,2]
[399781118,1766670646281,-250.0,0.000144,2]
[399781119,1766670646292,-617.40005154,0.00014408,2]
[399781120,1766670646302,-10032.44301602,0.0001451,2]
[399781121,1766670646313,-991.93,0.0001456,2]
[399781122,1766670646324,-500.0,0.00014581,2]
[399781123,1766670646334,-772.19361658,0.00014632,2]
[399781124,1766670646344,-2351.0,0.00014633,2]
[399781125,1766670646355,-166.68,0.00014637,2]
[399781126,1766670646365,-8862.26060312,0.00014678,2]
[399781127,1766670646376,-334.5472959,0.00014681,2]
[399781128,1766670646386,-642.94,0.00014681,2]
[399781129,1766670646397,-166.66,0.0001469,2]
[399781130,1766670646407,-435.98612319,0.00014706,2]
[399781131,1766670646417,-151.0,0.00014735,2]
[399781132,1766670646426,-151.0,0.00014735,2]
[399781133,1766670646436,-1000.0,0.00014747,2]
[399781134,1766670646446,-151.0,0.00014777,2]
[399781135,1766670646458,-151.0,0.00014777,2]
[399781136,1766670646472,-151.0,0.00014777,2]
[399781137,1766670646482,-151.0,0.00014777,2]
[399781138,1766670646492,-157.775104,0.00014777,2]
[399781139,1766670646501,-245.69288,0.00014777,2]
[399781140,1766670646511,-245.69288,0.00014777,2]
[399781141,1766670646521,-245.69288,0.00014777,2]
[399781142,1766670646530,-245.69288,0.00014777,2]
[399781143,1766670646540,-199.525094,0.00014777,2]
[399781144,1766670646550,-199.525094,0.00014777,2]
[399781145,1766670646560,-199.525094,0.00014777,2]
[399781146,1766670646570,-199.525094,0.00014777,2]
[399781147,1766670646580,-174.256907,0.00014777,2]
[399781148,1766670646591,-174.256907,0.00014777,2]
[399781149,1766670646602,-174.256907,0.00014777,2]
[399781150,1766670646613,-174.256907,0.00014777,2]
[399781151,1766670646624,-227.159974,0.00014777,2]
[399781152,1766670646635,-227.159974,0.00014777,2]
[399781153,1766670646646,-227.159974,0.00014777,2]
[399781154,1766670646658,-227.159974,0.00014777,2]
[399781155,1766670646673,-1040.930741,0.00014777,2]
[399781156,1766670646683,-1040.930741,0.00014777,2]
[399781157,1766670646694,-1040.930741,0.00014777,2]
[399781158,1766670646705,-1040.930741,0.00014777,2]
[399781159,1766670646715,-151.0,0.0001479,2]
[399781160,1766670646726,-151.0,0.0001479,2]
[399781161,1766670646737,-1600.0,0.00014793,2]
[399781162,1766670646749,-2090.5549903,0.00014795,2]
[399781163,1766670646759,-991.93,0.00014834,2]
[399781164,1766670646770,-5206.5731748,0.00014876,2]
[399781165,1766670646780,-246.80340688,0.000149,2]
[399781166,1766670646791,-640.24385345,0.00014956,2]
[399781167,1766670646801,-190.0,0.00015,2]
[399781168,1766670646812,-1032.508689,0.00015068,2]
[399781169,1766670646823,-1032.508689,0.00015068,2]
[399781170,1766670646833,-1032.508689,0.00015068,2]
[399781171,1766670646844,-1032.508689,0.00015068,2]
[399781172,1766670646855,-1032.508689,0.00015068,2]
[399781173,1766670646865,-1032.508689,0.00015068,2]
[399781174,1766670646876,-1032.508689,0.00015068,2]
[399781175,1766670646886,-1032.508689,0.00015068,2]
[399781176,1766670646897,-1032.508689,0.00015068,2]
[399781177,1766670646907,-1032.508689,0.00015068,2]
[399781178,1766670646917,-1032.508689,0.00015068,2]
[399781179,1766670646927,-1032.508689,0.00015068,2]
[399781180,1766670646938,-900.0,0.00015068,2]
[399781181,1766670646948,-992.03,0.00015108,2]
[399781182,1766670646958,-8862.26060312,0.00015123,2]
[399781183,1766670646969,-159.26,0.00015128,2]
[399781184,1766670646979,-151.0,0.00015132,2]
[399781185,1766670646990,-166.66,0.00015145,2]
[399781186,1766670646999,-534.43092948,0.00015169,2]
[399781187,1766670647010,-159.92,0.00015194,2]
[399781188,1766670647023,-147.92875323,0.0001521,2]
[399781189,1766670647037,-254.24124677,0.0001521,2]
[399781190,1766670647047,-52.70207357,0.00015211,2]
[399781191,1766670647059,-447.29792643,0.00015211,2]
[399781192,1766670647069,-151.0,0.00015212,2]
[399781193,1766670647083,-151.0,0.00015212,2]
[399781194,1766670647093,-151.0,0.00015212,2]
[399781195,1766670647103,-151.0,0.00015212,2]
[399781196,1766670647114,-151.0,0.00015212,2]
[399781197,1766670647125,-177.43,0.00015262,2]